Cogmind - Beta 13 @@@ ROGUE MODE // 2024.05.16 @ 14:58:46 Player: Jason Result: Destroyed by S-27 Virus with Autogun Performance ------------- Evolutions (3) 1500 Regions Visited (10) 2000 Robots Destroyed (196) 980 Value Destroyed (5446) 5446 Prototype IDs (35) 700 Alien Tech Used (0) 0 Bonus (391) 391 TOTAL SCORE: 11017 Bonus ------- High Alert Combat Kills 97 Aligned with FarCom 300 Friendly Fire -6 Cogmind --------- Core Integrity 0/700 Matter 225/300 Energy 93/150 System Corruption 12% Temperature Cool (0) Movement Rolling (100) Location -7/Factory Parts ------- > --- POWER (1) -------- Micro Nuclear Core > --- PROPULSION (5) --- Armored Huge Wheel > --- UTILITY (5) ------ Machine Analyzer Improved Terrain Scan Processor Core Shielding > --- WEAPON (2) ------- Power Maul > --- INVENTORY (5) ---- Improved Field Recycling Unit (0) Rocket Launcher Katana Peak State ------------ > --- POWER ------------ Light Deuterium Engine > --- PROPULSION ------- Armored Wheel Armored Huge Wheel Armored Huge Wheel > --- UTILITY ---------- Lightpack 2.0 Machine Analyzer Improved Light Armor Plating > --- WEAPON ----------- Heavy Phase Cannon Gauss Cannon > --- INVENTORY -------- Improved Ion Engine Light Deuterium Engine Light Nuclear Core Improved Titanium Leg Armored Wheel Armored Huge Wheel Armored Huge Wheel Armored Huge Wheel Armored Huge Wheel Cesium-ion Thruster Medium Matter Pod Structural Scanner Machine Analyzer Improved Terrain Scan Processor Seismic Detector Melee Analysis Suite Core Shielding Propulsion Shielding Hardened Medium Armor Plating Improved Focal Shield System Shield Component Analysis Suite Improved Field Recycling Unit Shock Rifle Particle Gun Ion Cannon Improved Assault Rifle Gauss Rifle Gauss Rifle Gauss Cannon Rocket Launcher Mini Grenade Launcher Mining Laser Heavy Hammer Power Maul Lance [Rating: 79] Favorites ----------- Power Light Nuclear Core Engine Light Deuterium Engine Power Core Light Nuclear Core Propulsion Light Treads Treads Light Treads Leg Improved Titanium Leg Wheel Armored Huge Wheel Utility High-capacity Storage Unit Device Structural Scanner Storage High-capacity Storage Unit Processor Machine Analyzer Protection Light Armor Plating Weapon Improved Assault Rifle Energy Gun Small Laser Energy Cannon Plasma Cannon Ballistic Gun Improved Assault Rifle Ballistic Cannon Gauss Cannon Launcher Mini Grenade Launcher Special Weapon Mining Laser Impact Weapon Power Maul Slashing Weapon Katana Piercing Weapon Lance Build | -11 -10 -10 -9 -9 -9 -8 -8 -7 -7 -7 ------- Run | Yrd Mat Min Mat Min Exi Min Mat Fac Was Fac Slots Evolved 6 | . . . 2 . . . 2 2 . . Power . | . . . . . . . . . . . Propulsion 3 | . . . 2 . . . . 1 . . Utility 3 | . . . . . . . 2 1 . . Weapon . | . . . . . . . . . . . Parts Attached 205 | 8 15 2 62 8 . 7 45 20 3 35 Power 16 | 1 2 . 5 1 . . 2 1 . 4 Engine 7 | 1 2 . . . . . 1 1 . 2 Core 9 | . . . 5 1 . . 1 . . 2 Reactor . | . . . . . . . . . . . Propulsion 52 | 2 4 . 23 . . 1 12 5 . 5 Treads 29 | 2 4 . 18 . . 1 3 1 . . Leg 14 | . . . 4 . . . 9 1 . . Wheel 9 | . . . 1 . . . . 3 . 5 Hover . | . . . . . . . . . . . Flight . | . . . . . . . . . . . Utility 41 | 3 3 . 15 . . 1 4 4 2 9 Device 21 | 2 2 . 12 . . 1 1 . 2 1 Storage 4 | 1 1 . 1 . . . 1 . . . Processor 2 | . . . . . . . 1 . . 1 Hackware . | . . . . . . . . . . . Protection 14 | . . . 2 . . . 1 4 . 7 Artifact . | . . . . . . . . . . . Weapon 96 | 2 6 2 19 7 . 5 27 10 1 17 Energy Gun 4 | 1 . . 1 . . . . 2 . . Energy Cannon 2 | . . . . . . . . . 1 1 Ballistic Gun 42 | 1 1 . 9 3 . 2 16 3 . 7 Ballistic Cannon 9 | . 1 . 3 1 . 1 . 1 . 2 Launcher 16 | . 2 2 1 3 . 2 3 1 . 2 Special Weapon 4 | . 1 . 2 . . . 1 . . . Impact Weapon 14 | . 1 . 3 . . . 7 . . 3 Slashing Weapon 3 | . . . . . . . . 3 . . Piercing Weapon 2 | . . . . . . . . . . 2 Special Melee Weapon . | . . . . . . . . . . . Unidentified Prototypes 1 | . . . 1 . . . . . . . Parts Lost 62 | . 7 . 8 . . 2 12 8 . 25 Power 8 | . 1 . 2 . . . 1 . . 4 Propulsion 24 | . 2 . 3 . . 2 7 3 . 7 Utility 14 | . 1 . 1 . . . 2 3 . 7 Weapon 16 | . 3 . 2 . . . 2 2 . 7 Highest Loss Streak 14 | . 7 . 4 . . 1 6 5 . 14 To Critical Strikes . | . . . . . . . . . . . Average Slot Usage (%) 86 | . 96 93 96 100 100 98 76 71 69 66 Engine 3 | . 13 14 . . . . . 7 7 4 Core 5 | . . . 10 11 11 11 8 . . . Treads 23 | . 27 28 38 44 44 42 9 2 . . Leg 6 | . . . 1 . . . 24 15 . . Wheel 4 | . . . 1 . . . . 8 23 22 Device 4 | . 13 14 8 . . 2 . . 1 2 Storage 9 | . 14 14 11 11 11 11 9 7 7 4 Processor 3 | . . . . . . . 6 7 7 8 Protection 4 | . . . 2 11 11 8 . 6 5 7 Ballistic Gun 10 | . 7 . 16 16 22 12 12 3 . 1 Ballistic Cannon 2 | . 5 . 3 1 . 6 . 2 7 4 Launcher 1 | . 2 8 . 4 . 3 . . . . Impact Weapon 2 | . 1 14 . . . . 3 . . 3 Naked Turns . | . . . . . . . . . . . Heaviest Build 59 | 13 34 36 59 58 54 56 20 30 30 28 Greatest Support 83 | 40 40 40 83 83 83 83 83 68 68 68 Greatest Overweight (x) 5 | 3 . . 5 . . . 4 . . 1 Average Overweight (x) . | . . . . . . . . . . . Largest Inventory Capacity 40 | 8 15 15 20 20 20 20 40 40 40 40 Average Capacity 25 | 7 13 15 19 20 20 20 39 40 40 28 Most Carried 40 | 8 15 15 20 20 20 20 40 40 40 40 Average Carried 22 | 5 11 13 19 19 19 19 31 32 38 27 Final Capacity 40 | 8 15 15 20 20 20 20 40 40 40 5 Final Carried 40 | 8 12 15 20 20 20 20 33 40 39 3 Class Distribution -------------------- 33% | Hauler-Mutant 31% | Mutant 31% | Scavenger-Mutant 3% | Hauler-Assassin Dominant Class ---------------- Mutant | -10/Materials Mutant | -10/Mines Scavenger-Mutant | -9/Materials Scavenger-Mutant | -9/Mines Scavenger-Mutant | -9/Exiles Scavenger-Mutant | -8/Mines Hauler-Mutant | -8/Materials Hauler-Mutant | -7/Factory Hauler-Mutant | -7/Waste Hauler-Mutant | -7/Factory Resources | -11 -10 -10 -9 -9 -9 -8 -8 -7 -7 -7 ----------- Run | Yrd Mat Min Mat Min Exi Min Mat Fac Was Fac Matter Collected 4872 | 285 317 151 1157 359 . 159 1140 431 . 873 Remotely 157 | 39 . . 118 . . . . . . . Salvage Created 6305 | 93 588 308 1738 343 . 217 1347 407 . 1264 Parts 361 | 10 32 27 91 18 . 19 73 29 . 62 Haulers Intercepted 5 | . 1 . 2 . . . 1 . . 1 Recyclers Shooed 4 | . . . 2 . . . 1 . . 1 Parts Field Recycled . | . . . . . . . . . . . Retrieved Matter . | . . . . . . . . . . . Parts Self-Destructed . | . . . . . . . . . . . Prevented . | . . . . . . . . . . . Kills | -11 -10 -10 -9 -9 -9 -8 -8 -7 -7 -7 ------- Run | Yrd Mat Min Mat Min Exi Min Mat Fac Was Fac Combat Hostiles Destroyed 149 | . 15 10 36 16 . 11 32 10 . 19 Melee 4 | . . . . . . . . 2 . 2 Guns 66 | . 6 . 26 3 . . 21 5 . 5 Cannons 25 | . 5 . 10 . . 2 1 3 . 4 AOE 51 | . 3 10 . 13 . 9 10 . . 6 Classes Destroyed 17 | 2 5 2 3 . . 1 1 1 . 2 Worker 8 | . . 1 . . . . 1 . . 6 Builder 15 | . 4 2 . . . . 2 2 . 5 Tunneler 7 | 2 . 2 1 1 . . 1 . . . Hauler 5 | . 1 . 2 . . . 1 . . 1 Recycler 12 | 1 . 1 2 2 . . 1 . . 5 Mechanic 2 | . . . 1 . . . 1 . . . Watcher 6 | . 2 . 1 . . . 1 . . 2 Swarmer 39 | . 3 5 4 6 . 6 11 4 . . Grunt 69 | . 12 4 22 3 . 3 11 1 . 13 Brawler 1 | . . . 1 . . . . . . . Duelist 2 | . . . . . . . 2 . . . Sentry 17 | . . . 9 . . . 6 2 . . Specialist 2 | . . . . . . . . . . 2 Hunter 4 | . . . . . . 2 2 . . . Programmer 6 | . . . . . . . . 3 . 3 Heavy 1 | . . . . . . . . . . 1 Assembled 8 | . . 1 . 7 . . . . . . Best Kill Streak 16 | 3 9 10 6 8 . 3 5 4 . 16 Combat Bots Only 7 | . 5 7 6 7 . 3 5 4 . 5 Max Kills in Single Turn 4 | 1 2 3 2 4 . 3 3 1 . 4 Gunslinging 1 | . . . 1 . . . . . . . Exploded 4 | . 1 3 . 4 . 3 3 . . 1 Melee 1 | . . . . . . . . 1 . 1 Uniques/NPCs Destroyed . | . . . . . . . . . . . Combat | -11 -10 -10 -9 -9 -9 -8 -8 -7 -7 -7 -------- Run | Yrd Mat Min Mat Min Exi Min Mat Fac Was Fac Hostile Shots Fired 1011 | . 91 18 176 52 . 44 185 183 . 262 Missed 277 | . 20 5 54 13 . 8 44 53 . 80 Damage Taken 11303 | . 975 286 1602 616 . 423 2379 1550 . 3472 Core 1533 | . 149 30 92 76 . 48 435 192 . 511 Absorbed by Shields . | . . . . . . . . . . . Redirected to Shielding 108 | . . . . . . . . . . 108 Ignored by Resistances 102 | . . . . . . . . 102 . . Regen/Repaired (Parts) 660 | . . . 459 . . . . . . 201 Core Remaining (%) 48 | 100 . 28 . . . 46 20 . . . Volleys Fired 418 | 5 63 10 108 21 . 15 111 25 6 54 Largest 2 | 2 2 1 2 2 . 2 2 2 1 2 Hottest 100 | 60 100 33 100 67 . 67 100 98 90 81 Shots Fired 767 | 10 119 10 204 40 . 30 211 41 6 96 Gun 551 | 10 75 . 166 26 . 15 187 28 . 44 Cannon 153 | . 35 . 35 2 . 9 16 13 6 37 Launcher 56 | . 6 10 . 12 . 6 7 . . 15 Special 7 | . 3 . 3 . . . 1 . . . Kinetic 646 | 5 91 . 196 28 . 24 203 24 . 75 Thermal 43 | 5 22 . 3 . . . 1 . 6 6 Explosive 50 | . 2 8 . 12 . 6 7 . . 15 Electromagnetic 28 | . 4 2 5 . . . . 17 . . Robot Hit Streak 21 | 5 9 10 21 6 . 6 11 14 2 11 Robot Miss Streak 5 | 2 3 2 4 3 . 1 3 5 2 3 Penetration Max 1 | . . . . . . . . . . 1 Secondary Targets 5 | . 1 . 2 . . . 2 . . . Max Gunslinging Chain 1 | . 1 . 1 . . . 1 . . . Shots Hit Robots 557 | 7 87 9 153 17 . 16 141 41 3 83 Core Hits 316 | 6 28 20 76 25 . 18 63 17 1 62 Critical Kills 2 | . . 1 . . . . . . . 1 Critical Parts Destroyed 10 | . 1 . 2 . . . 3 . . 4 Critical Strikes 27 | . 2 1 5 . . 2 3 3 . 11 Destroy 3 | . . . 2 . . . 1 . . . Blast 12 | . 1 . 1 . . 2 . 2 . 6 Corrupt 2 | . . . 2 . . . . . . . Smash 9 | . 1 1 . . . . 2 . . 5 Sever 1 | . . . . . . . . 1 . . Melee Attacks 143 | . 8 6 4 . . . 31 41 . 53 Impact 89 | . 8 6 4 . . . 31 . . 40 Slashing 41 | . . . . . . . . 41 . . Piercing 13 | . . . . . . . . . . 13 Sneak Attacks 18 | . 2 2 . . . . 4 2 . 8 Combat Hostiles . | . . . . . . . . . . . Follow-up Attacks . | . . . . . . . . . . . Damage Inflicted 14882 | 67 1544 880 2354 1110 . 618 3407 1015 135 3752 Guns 5485 | 67 425 . 1790 207 . 74 2115 241 . 566 Cannons 2398 | . 425 . 564 45 . 94 222 265 135 648 Explosions 4186 | . 326 577 . 858 . 450 647 90 . 1238 Melee 2810 | . 368 303 . . . . 420 419 . 1300 Ramming 3 | . . . . . . . 3 . . . Kinetic 7172 | 23 716 . 2272 252 . 168 2337 326 . 1078 Thermal 612 | 44 207 . . . . . . 90 135 136 Explosive 3576 | . 67 446 . 858 . 450 647 . . 1108 Electromagnetic 709 | . 186 131 82 . . . . 180 . 130 Impact 2025 | . 368 303 . . . . 420 . . 934 Slashing 419 | . . . . . . . . 419 . . Piercing 366 | . . . . . . . . . . 366 Highest Corruption 12 | . 1 1 . . . . . . . 12 Average Corruption 2 | . 1 1 . . . . . . . 4 Corruption Purged . | . . . . . . . . . . . Corruption Blocked . | . . . . . . . . . . . Effects 26 | . 1 7 . . . . . . . 18 Message Errors 4 | . . . . . . . . . . 4 Matter Fused 2 | . . 1 . . . . . . . 1 Heat Flow Errors 5 | . . 1 . . . . . . . 4 Energy Discharges 3 | . 1 1 . . . . . . . 1 Parts Rejected 1 | . . . . . . . . . . 1 Data Loss (minor) 6 | . . 2 . . . . . . . 4 Data Loss (major) 3 | . . . . . . . . . . 3 Misfires 1 | . . 1 . . . . . . . . Weapon Failures 1 | . . 1 . . . . . . . . Overload Shots . | . . . . . . . . . . . Overflow Damage 1526 | . 220 127 . 62 . . 367 141 . 609 Projectiles 39 | . . . . 3 . . . 21 . 15 Explosions 187 | . 22 2 . 59 . . 66 35 . 3 Melee 1300 | . 198 125 . . . . 301 85 . 591 Knockbacks 41 | . 12 . 8 2 . . 5 1 . 13 Impact 7 | . 2 . . . . . 1 . . 4 Kinetic 29 | . 8 . 7 1 . . 4 1 . 8 Secondary 5 | . 2 . 1 1 . . . . . 1 Self-Inflicted Damage 530 | . 187 113 . 152 . 41 16 . . 21 Shots 21 | . 8 4 . 5 . 2 1 . . 1 Rammed . | . . . . . . . . . . . Targets Rammed 1 | . . . . . . . 1 . . . Kicked 1 | . . . . . . . 1 . . . Crushed . | . . . . . . . . . . . Highest Temperature 248 | 20 120 133 220 60 . 48 120 135 228 248 Average Temperature 41 | 15 34 70 52 18 . 19 27 41 118 63 Received Heat Transfer 2802 | . 375 30 720 126 . 54 702 174 . 621 Siege Activations . | . . . . . . . . . . . Robots Corrupted . | . . . . . . . . . . . Combat Hostiles . | . . . . . . . . . . . Parts Fried 24 | . 12 3 . . . . 3 . . 6 Impact Corruptions 38 | . 9 5 . . . . 9 . . 15 Robots Melted . | . . . . . . . . . . . Combat Hostiles . | . . . . . . . . . . . Parts Melted 1 | . . . . . . . . . . 1 Heat Transferred 948 | 100 400 . . . . . . 50 148 250 Parts Sabotaged . | . . . . . . . . . . . Parts Stolen . | . . . . . . . . . . . Parts Stripped . | . . . . . . . . . . . Power Chain Reactions 5 | . 4 . . . . . . 1 . . Alert | -11 -10 -10 -9 -9 -9 -8 -8 -7 -7 -7 ------- Run | Yrd Mat Min Mat Min Exi Min Mat Fac Was Fac Peak Influence 549 | 15 147 202 538 304 . 169 549 266 40 374 Initial 241 | . 9 25 24 198 . . 13 241 38 28 Average 150 | 2 64 83 273 153 . 99 131 124 39 169 Maximum Alert Level 2 | . . 1 2 1 . . 2 1 . 1 Low Security (%) 71 | 100 100 93 34 59 . 100 83 73 100 62 Level 1 22 | . . 6 47 40 . . 7 26 . 37 Level 2 5 | . . . 18 . . . 8 . . . Level 3 . | . . . . . . . . . . . Level 4 . | . . . . . . . . . . . Level 5 . | . . . . . . . . . . . High Security . | . . . . . . . . . . . Max Security . | . . . . . . . . . . . Squads Dispatched 32 | . 5 . 4 . . . 6 6 . 11 Investigation 13 | . 3 . 4 . . . 3 1 . 2 Extermination 7 | . . . . . . . . 4 . 3 Reinforcement 9 | . 2 . . . . . 1 1 . 5 Assault 1 | . . . . . . . 1 . . . Garrison 2 | . . . . . . . 1 . . 1 Intercept . | . . . . . . . . . . . Searches Triggered . | . . . . . . . . . . . Construction Impeded . | . . . . . . . . . . . Haulers Reinforced 1 | . . . . . . . . . . 1 Active Scanning Responses . | . . . . . . . . . . . Cargo Convoy Interrupts 1 | . . . . . . . . . . 1 Stealth | -11 -10 -10 -9 -9 -9 -8 -8 -7 -7 -7 --------- Run | Yrd Mat Min Mat Min Exi Min Mat Fac Was Fac Distress Signals 14 | . 1 . 4 . . . 4 . . 5 Communications Jammed . | . . . . . . . . . . . Distress Signals . | . . . . . . . . . . . Times Spotted 239 | . 31 10 60 25 . 10 41 12 6 44 Peak Tracking Total 15 | . 7 6 7 15 . 4 5 4 6 10 Tactical Retreats 8 | . . 1 3 . . . . . . 4 Traps | -11 -10 -10 -9 -9 -9 -8 -8 -7 -7 -7 ------- Run | Yrd Mat Min Mat Min Exi Min Mat Fac Was Fac Traps Triggered 17 | . 3 . 3 . . . 2 2 . 7 Indirectly . | . . . . . . . . . . . Trap Hack Attempts . | . . . . . . . . . . . Triggered . | . . . . . . . . . . . Disarmed . | . . . . . . . . . . . Reprogrammed . | . . . . . . . . . . . Reused . | . . . . . . . . . . . Traps Extracted . | . . . . . . . . . . . Installed . | . . . . . . . . . . . Triggered 1 | . . . . . . . . . . 1 Machines | -11 -10 -10 -9 -9 -9 -8 -8 -7 -7 -7 ---------- Run | Yrd Mat Min Mat Min Exi Min Mat Fac Was Fac Machines Disabled 16 | . 1 . . 1 . 1 7 2 . 4 Max in Single Turn 4 | . 1 . . 1 . 1 1 2 . 4 Garrison Access 1 | . . . . . . . 1 . . . Machines Repaired . | . . . . . . . . . . . Machines Dismantled . | . . . . . . . . . . . Machines Sabotaged . | . . . . . . . . . . . Overloaded Fab Kills . | . . . . . . . . . . . Hacking | -11 -10 -10 -9 -9 -9 -8 -8 -7 -7 -7 --------- Run | Yrd Mat Min Mat Min Exi Min Mat Fac Was Fac Machines Accessed 56 | . 8 1 17 . 2 . 12 3 . 13 Terminals 38 | . 7 1 12 . . . 9 1 . 8 Fabricators 3 | . . . . . . . . 2 . 1 Repair Stations 3 | . . . 2 . . . . . . 1 Recycling Units 5 | . 1 . 1 . . . 1 . . 2 Scanalyzers 4 | . . . 2 . . . 1 . . 1 Garrison Access 1 | . . . . . . . 1 . . . Total Hacks 193 | . 26 2 70 . 2 . 53 8 . 32 Successful 108 | . 14 1 45 . 2 . 25 4 . 17 Failed 85 | . 12 1 25 . . . 28 4 . 15 Catastrophic 6 | . 1 . . . . . 2 1 . 2 Database Lockouts . | . . . . . . . . . . . Manual 92 | . 17 2 26 . 1 . 27 2 . 17 Terminals 135 | . 23 2 43 . . . 42 4 . 21 Fabricators 6 | . . . . . . . . 4 . 2 Repair Stations 13 | . . . 10 . . . . . . 3 Recycling Units 10 | . 3 . 2 . . . 2 . . 3 Scanalyzers 23 | . . . 15 . . . 5 . . 3 Garrison Access 4 | . . . . . . . 4 . . . Terminal Hacks 28 | . 4 . 8 . 2 . 11 1 . 2 Record 4 | . . . . . 1 . 2 1 . . Part Schematic 2 | . 1 . 1 . . . . . . . Robot Analysis 2 | . 1 . . . . . 1 . . . Prototype ID Bank 7 | . 1 . 4 . . . 2 . . . Branch Access Points 2 | . 1 . 1 . . . . . . . Alert Level 1 | . . . . . . . 1 . . . Locate Traps 3 | . . . 1 . . . 2 . . . Dispatch Records 1 | . . . . . . . 1 . . . Recall Investigation 1 | . . . . . . . . . . 1 Hauler Manifests 1 | . . . . . . . . . . 1 Registered Components 1 | . . . 1 . . . . . . . Zone Layout 2 | . . . . . . . 2 . . . Derelict Proto ID Bank 1 | . . . . . 1 . . . . . Fabricator Hacks 4 | . . . . . . . . 2 . 2 Network Status 2 | . . . . . . . . 1 . 1 Load Schematic 2 | . . . . . . . . 1 . 1 Repair Station Hacks 12 | . . . 10 . . . . . . 2 Scan Component 6 | . . . 5 . . . . . . 1 Repair 6 | . . . 5 . . . . . . 1 Recycling Unit Hacks 8 | . 2 . 2 . . . 2 . . 2 Report Inventory 5 | . 1 . 1 . . . 2 . . 1 Retrieve Components 3 | . 1 . 1 . . . . . . 1 Scanalyzer 20 | . . . 14 . . . 4 . . 2 Insert Component 9 | . . . 7 . . . 1 . . 1 Analyze 11 | . . . 7 . . . 3 . . 1 Garrison Access Hacks 1 | . . . . . . . 1 . . . Seal Access 1 | . . . . . . . 1 . . . Unauthorized Hacks 35 | . 8 1 11 . . . 7 1 . 7 Terminals 34 | . 8 1 11 . . . 7 1 . 6 Assimilate 1 | . 1 . . . . . . . . . Botnet 33 | . 7 1 11 . . . 7 1 . 6 Fabricators . | . . . . . . . . . . . Repair Stations . | . . . . . . . . . . . Recycling Units 1 | . . . . . . . . . . 1 Monitor 1 | . . . . . . . . . . 1 Scanalyzers . | . . . . . . . . . . . Garrison Access . | . . . . . . . . . . . Data Cores Recovered . | . . . . . . . . . . . Used . | . . . . . . . . . . . Hacking Detections 49 | . 8 1 16 . . . 10 3 . 11 Full Trace Events 11 | . 1 . 4 . . . 3 1 . 2 Feedback Events . | . . . . . . . . . . . Feedback Blocked . | . . . . . . . . . . . Robot Schematics Acquired . | . . . . . . . . . . . Robots Built . | . . . . . . . . . . . Authchips . | . . . . . . . . . . . Time . | . . . . . . . . . . . Total Robot Build Rating . | . . . . . . . . . . . Part Schematics Acquired 11 | . 1 . 8 . . . 1 . . 1 Parts Built . | . . . . . . . . . . . Authchips . | . . . . . . . . . . . Time . | . . . . . . . . . . . Total Part Build Rating . | . . . . . . . . . . . Parts Repaired 6 | . . . 5 . . . . . . 1 Time 242 | . . . 198 . . . . . . 44 Parts Recycled . | . . . . . . . . . . . Recycled Matter . | . . . . . . . . . . . Retrieved Matter . | . . . . . . . . . . . Retrieved Components 9 | . 1 . 6 . . . . . . 2 Parts Scanalyzed 9 | . . . 7 . . . 1 . . 1 Part Schematics Acquired 9 | . . . 7 . . . 1 . . 1 Parts Damaged . | . . . . . . . . . . . Bothacking | -11 -10 -10 -9 -9 -9 -8 -8 -7 -7 -7 ------------ Run | Yrd Mat Min Mat Min Exi Min Mat Fac Was Fac Used RIF Installer . | . . . . . . . . . . . Robots Hacked . | . . . . . . . . . . . Non-combat . | . . . . . . . . . . . Combat . | . . . . . . . . . . . Robot Hacks Applied . | . . . . . . . . . . . Relay Couplers Released . | . . . . . . . . . . . Fabnet Peak Effective % . | . . . . . . . . . . . Robots Rewired . | . . . . . . . . . . . Allies Hacked . | . . . . . . . . . . . Hacks Repelled . | . . . . . . . . . . . Allies | -11 -10 -10 -9 -9 -9 -8 -8 -7 -7 -7 -------- Run | Yrd Mat Min Mat Min Exi Min Mat Fac Was Fac Total Allies . | . . . . . . . . . . . Largest Group . | . . . . . . . . . . . Highest-Rated Group . | . . . . . . . . . . . Highest-Rated Ally . | . . . . . . . . . . . Total Orders . | . . . . . . . . . . . Ally Attacks . | . . . . . . . . . . . Total Damage . | . . . . . . . . . . . Kills . | . . . . . . . . . . . Allies Corrupted . | . . . . . . . . . . . Allies Melted . | . . . . . . . . . . . Intel | -11 -10 -10 -9 -9 -9 -8 -8 -7 -7 -7 ------- Run | Yrd Mat Min Mat Min Exi Min Mat Fac Was Fac Robot Analysis Total 2 | . 1 . . . . . 1 . . . Derelict Logs Recovered 4 | . . 3 . 1 . . . . . . Drone Launches . | . . . . . . . . . . . Drone Recoveries . | . . . . . . . . . . . Exploration | -11 -10 -10 -9 -9 -9 -8 -8 -7 -7 -7 ------------- Run | Yrd Mat Min Mat Min Exi Min Mat Fac Was Fac Turns Passed 16259 | 193 1844 964 3088 1436 809 1084 3008 1521 167 2145 Spaces Moved 9423 | 101 966 571 1484 838 505 601 1624 952 154 1627 Core 25 | 18 . . . . . . 6 . . 1 Treads 5306 | 83 966 571 1286 838 505 601 456 . . . Legs 1732 | . . . . . . . 1162 570 . . Wheels 2360 | . . . 198 . . . . 382 154 1626 Hover . | . . . . . . . . . . . Flight . | . . . . . . . . . . . Fastest Speed 50 | 50 160 160 155 160 160 160 120 96 96 95 Average Speed 139 | 154 160 160 159 160 160 160 139 112 96 96 Slowest Speed 320 | 200 160 160 320 160 160 160 250 125 96 105 Overloaded Moves . | . . . . . . . . . . . Propulsion Burnouts . | . . . . . . . . . . . Robots Hopped . | . . . . . . . . . . . Cave-ins Triggered 1 | . . . . . . . . . . 1 Exploration Rate (%) 71 | 5 98 97 96 99 88 98 76 15 72 37 Regions Visited 10 Branch Regions 4 Pre-discovered Areas 2 | . . 1 . 1 . . . . . . Known Exits Taken 3 | . 1 . 1 . . 1 . . . . Unknown Exits Taken 5 | 1 . 1 . 1 1 . 1 . . . Scrap Searched 5 | . . 1 . 1 . 3 . . . . Spaces Dug 87 | . 3 . 7 . . . 30 21 . 26 Terrain Destroyed 415 | . 18 33 9 113 . 44 75 26 2 95 Melee 73 | . . . 4 . . . 23 21 . 25 Projectile 26 | . 3 . 5 . . . 5 1 2 10 AOE 315 | . 15 33 . 113 . 44 46 4 . 60 Terrain Rammed . | . . . . . . . . . . . Walls Destroyed . | . . . . . . . . . . . Machines Disabled . | . . . . . . . . . . . Actions | -11 -10 -10 -9 -9 -9 -8 -8 -7 -7 -7 --------- Run | Yrd Mat Min Mat Min Exi Min Mat Fac Was Fac Total 11523 | 125 1142 601 1985 892 508 691 2111 1296 166 2006 Wait 1143 | 4 62 7 283 20 . 69 255 241 . 202 Move 9414 | 100 965 570 1483 837 504 600 1623 952 153 1627 Hop . | . . . . . . . . . . . Pick Up 117 | 7 16 5 20 2 1 . 34 14 2 16 Fast Attach 60 | 8 1 . 16 . . . 12 4 1 18 Attach 39 | . 8 1 6 . . 1 10 7 . 6 Detach 12 | 1 2 . . . . . 5 2 1 1 Swap 106 | . 6 1 40 8 . 6 23 9 2 11 Drop 60 | . 11 1 25 3 3 . 6 1 1 9 Fire 418 | 5 63 10 108 21 . 15 111 25 6 54 Melee 143 | . 8 6 4 . . . 31 41 . 53 Ram . | . . . . . . . . . . . Kick 1 | . . . . . . . 1 . . . Crush . | . . . . . . . . . . . Escape Stasis 9 | . . . . . . . . . . 9 Rewire 1 | . . . . 1 . . . . . . Trap . | . . . . . . . . . . . Miscellaneous . | . . . . . . . . . . . Route ------- -11/Scrapyard -10/Materials (discovered 4 exits: *Mat x3 / *Min) -10/Mines (discovered 2 exits: *Mat x2) -9/Materials (discovered 5 exits: *Mat x3 / *Min x2) -9/Mines (discovered 3 exits: *Mat x2 / *Exi) -9/Exiles -8/Mines (discovered 2 exits: *Mat x2) -8/Materials (discovered 3 exits: *Fac x3) -7/Factory -7/Waste -7/Factory (discovered 3 exits: [*Fac x2] / [*Low]) History --------- Turn | Location | Event 13 | -11/Scrapyard | Discovered new exit (range 16) 194 | -11/Scrapyard | Entered Materials 302 | -10/Materials | Build established: Mutant 383 | -10/Materials | Discovered new exit (range 5) 567 | -10/Materials | Identified exit to Mines 643 | -10/Materials | Discovered new exit (range 16) 1223 | -10/Materials | Discovered new exit (range 13) 1763 | -10/Materials | Core integrity fell below 50% 1790 | -10/Materials | Lost 7 parts (1p2n1u3w) 2038 | -10/Materials | Entered Mines 2038 | -10/Mines | Discovered new exit (range 9) 2158 | -10/Mines | Learned Materials stockpile data 2176 | -10/Mines | Learned location of 1 exit from Materials 2409 | -10/Mines | Excavation squad dispatched 2409 | -10/Mines | A large section of the Mines collapsed 2471 | -10/Mines | Destroyed 7 combat bots 2725 | -10/Mines | Discovered new exit (range 5) 2858 | -10/Mines | Learned location of Zion (-7) 3002 | -10/Mines | Entered Materials 3002 | -9/Materials | Evolved 2 slots: Propulsion x2 3003 | -9/Materials | Identified exit to Materials 3336 | -9/Materials | Lost 4 parts (2n1u1w) 3721 | -9/Materials | Discovered new exit (range 15) 4132 | -9/Materials | Discovered exit to Materials (range 14) 4174 | -9/Materials | Identified exit to Mines 4275 | -9/Materials | Build established: Scavenger-Mutant 4479 | -9/Materials | Discovered exit to Materials (range 16) 4929 | -9/Materials | Build established: Mutant 5218 | -9/Materials | Repaired Imp. Assault Rifle 5246 | -9/Materials | Repaired Lgt. Treads 5745 | -9/Materials | Build established: Scavenger-Mutant 5815 | -9/Materials | Repaired Imp. Assault Rifle 5848 | -9/Materials | Repaired Imp. Treads 5888 | -9/Materials | Repaired Nuclear Core 6090 | -9/Materials | Entered Mines 6101 | -9/Mines | Assembled infested the area 6123 | -9/Mines | Met 8R-AWN 6136 | -9/Mines | Destroyed 7 combat bots 6198 | -9/Mines | Discovered exit to Materials (range 16) 6367 | -9/Mines | Discovered new exit (range 5) 6457 | -9/Mines | Learned location of Storage (-7) 6636 | -9/Mines | Found Prototype Ballistic Gun 7033 | -9/Mines | Discovered exit to Materials (range 14) 7083 | -9/Mines | Received a Rocket Launcher from a helpful Derelict 7526 | -9/Mines | Entered Exiles 7586 | -9/Exiles | Welcomed by 8R-AWN 7632 | -9/Exiles | Met EX-HEX 7794 | -9/Exiles | Met EX-BIN 7837 | -9/Exiles | Aligned with FarCom system 7838 | -9/Exiles | Given EX-Vault access code 7878 | -9/Exiles | Opened EX-Vault 7912 | -9/Exiles | Found Lightpack 2.0 7943 | -9/Exiles | Warned to stay clear of 0b10 Research branches 7999 | -9/Exiles | Met EX-DEC 8055 | -9/Exiles | Visited The Gauntlet 8310 | -9/Exiles | Discovered new exit (range 12) 8335 | -9/Exiles | Left Exiles lab with Lightpack 2.0 8335 | -9/Exiles | Entered Mines 9326 | -8/Mines | Discovered exit to Materials (range 11) 9348 | -8/Mines | Core integrity fell below 50% 9395 | -8/Mines | Discovered exit to Materials (range 13) 9419 | -8/Mines | Entered Materials 9419 | -8/Materials | Evolved 2 slots: Utility x2 9556 | -8/Materials | Garrison activated, responded to threat 9665 | -8/Materials | Lost 6 parts (3n2u1w) 9737 | -8/Materials | Build established: Hauler-Mutant 10759 | -8/Materials | Discovered new exit (range 17) 11354 | -8/Materials | Discovered new exit (range 13) 12217 | -8/Materials | Discovered new exit (range 8) 12219 | -8/Materials | First assault squad dispatched 12294 | -8/Materials | Core integrity fell below 50% 12382 | -8/Materials | Lost 6 parts (1p4n1w) 12427 | -8/Materials | Entered Factory 12427 | -7/Factory | Evolved 2 slots: Propulsion x1, Utility x1 12428 | -7/Factory | Identified exit to Storage 12976 | -7/Factory | Lost 5 parts (2n2u1w) 13948 | -7/Factory | Sucked down chute 13948 | -7/Factory | Entered Waste 13997 | -7/Waste | Spotted C-40 Crusher 13998 | -7/Waste | Spotted C-40 Crusher 14017 | -7/Waste | Spotted C-40 Crusher 14022 | -7/Waste | Spotted C-40 Crusher 14055 | -7/Waste | Spotted C-40 Crusher 14059 | -7/Waste | Spotted C-40 Crusher 14096 | -7/Waste | Discovered new exit (range 16) 14115 | -7/Waste | Entered Factory 14271 | -7/Factory | Discovered new exit (range 6) 14412 | -7/Factory | Build established: Hauler-Assassin 14634 | -7/Factory | Discovered new exit (range 9) 15072 | -7/Factory | Build established: Hauler-Mutant 15115 | -7/Factory | Discovered new exit (range 9) 15252 | -7/Factory | Cargo convoy interrupted 15575 | -7/Factory | Core integrity fell below 50% 15606 | -7/Factory | Garrison activated, responded to threat 15636 | -7/Factory | Lost 14 parts (2p4n4u4w) 15820 | -7/Factory | Build established: Mutant 15926 | -7/Factory | Crushed by falling debris 15926 | -7/Factory | System corruption reached 10% 16235 | -7/Factory | Repaired Arm. Huge Wheel? 16242 | -7/Factory | Core integrity fell below 20% 16260 | -7/Factory | Destroyed by S-27 Virus with Autogun Last Messages --------------- 16227_ Penetrated by Slug. 16228_ System corrupted: Heat flow error (+162). 16234_ W-25 Informer sends out distress signal. 16234_ Critical hit (Destroy). 16235_ >> REPAIR: Completed Arm. Huge Wheel? 16242_ W-25 Informer destroyed. 16242_ Arm. Huge Wheel destroyed. 16243_ Sneak attack on K-01 Serf. 16243_ K-01 Serf suffers critical hit (Smash). 16243_ Destroyed Lgt. Ion Engine. 16243_ K-01 Serf system corrupted by crushing effect. 16243_ Wheel fried. 16243_ K-01 Serf destroyed. 16244_ System corrupted: Component data lost. 16244_ Imp. Medium Armor Plating destroyed. 16253_ Arm. Huge Wheel destroyed. 16255_ Acquired Arm. Huge Wheel. 16258_ Acquired Mic. Nuclear Core. 16260_ Penetrated by Slug. Map ----- +----------------------------------------------------+ | ??????????????????????????????????????"""""?? #!## | | ?????????????????????????????? ????????????? #!## | | ????????????????????????????? ?????###+###?##%## | | ??"""""""???????????????????? ?????# ? %!## | | ??"""""""????????????????????? ?????# #?##### | | ??"""""""?????????????????????# ?????# #?##### | | ??"""""""?????????????????????# ####?# #?"""T" | | ??????????????????????????????+ ### #?"""?" | | ????????"?????????????????????# #?????? | | ??????"""?????????????????????# #?????? | | ????????G????????"""??????????# +?????? | | ??????"""????????"""??????????# #?????? | | ????????"????????"""??????????#Y =%= #?????? | | ??????????????????????????????# ! #?????? | | ####+#????????????????????????# #####?? | | ??]????????""???????????# | | ?? ????????"""??????????# ##### #######?? | | ? ?????????S"??#########/##+#???# #???????? | | """" """"?????"""??# % #???# #???????? | | """" """" ???"""??# """h""" ##??# #???????? | | """" """" ?????????# "R """h #??# #???????? | | ?????????#p"""s"""h #####+########? | | """" """" ?????????# s ssY * #! % """ #? | | """" """" ? ?????# # "R" #? | | """" """" + # " " " " " #? | | # @ *! # " " " #? | | % """T""" # **! ! # " " " #? | | ############## T#?# ** # " " " #? | | % ?????????????????# = # " " " #? | | #?????????????????# # " " " #? | | ###???????????????############## " " " #? | | # ###??????????????????????????# " " " +? | | #####??????????????????????# " " " ## | | ! |! / #??????????????????????# % ! #? | | [ !! ##??????????###################/####### | | %# ] #???????????# # " | | ![ * % #???????????# # | | [ #???????????# # """"""" "" | | # ""T " #???????????# + """"""" T | | !| """"" #???????????# # """"""" "" | | ! #???????????# # """"""" | | =# ########???????????# # | | %####??????????????????# # ! | | #?????????????????????########### | | #???????????????????????????????# | | ##############?????????????###??# | | # #?????######### #### | | # """ """ #?????# # ########### | | # """ """ #?????# = # #????# | | # """ """ #?????# # #????# | +----------------------------------------------------+ Best States ------------- Heat Dissipation 50 Energy Generation 15 Energy Capacity 280 Matter Stores 300 Matter Capacity 300 Sight Range 16 Robot Scan Range 14 Terrain Scan Density 110 Armor Coverage 225 Resistance: KI 20 Core Shielding 20 Propulsion Shielding 66 Evasion (%) 55 Recoil Reduction 4 Item Schematics ----------------- Hcp. Storage Unit | -10/Materials | Hacked Imp. Assault Rifle | -9/Materials | Scanalyzed Nuclear Core | -9/Materials | Scanalyzed Imp. Treads | -9/Materials | Hacked Cooling System | -9/Materials | Scanalyzed Lgt. Armor Plating | -9/Materials | Scanalyzed Flak Cannon | -9/Materials | Scanalyzed Mining Laser | -9/Materials | Scanalyzed Propulsion Shielding | -9/Materials | Scanalyzed Prc. Shock Rifle | -8/Materials | Scanalyzed Arm. Huge Wheel | -7/Factory | Scanalyzed Robot Schematics ------------------ None Fabricated ------------ Nothing Alien Tech Used ----------------- None Achievements -------------- Packrat Challenges ------------ None Game ------ Seed PointyReinforcedChainsword Manual? 0 Play Time 02:07:35 Cumulative 79.4 hours Start 2024.05.16 @ 10:55:20 End 2024.05.16 @ 14:58:46 Sessions 3 Manual Loads 0 Difficulty Rogue Special Mode None Game No. 66 Rogue 66 Adventurer 0 Explorer 0 Win Type - Total 0 Types 0/0/0/0/0/0/0/0/0 Lore% 26 Gallery% 41 Achievement% 30 Wizard Run 0 Options --------- Layout 2 ASCII 1 Keyboard 1 Movement Arrows Keybinds 0 Fullscreen 2 Font 20/SmallcapsGlow Map View 50x44 Zoom Use 0% Tactical HUD 1 Map Filters NONE Filters NONE Steam 1 RUN: 6f4ed416-ee4e-4c39-b2d7-4c9f8ca2c2f2